[Event "16th Deltalift Open 2019"]
[Site "Halmstad"]
[Date "2019.05.31"]
[Round "6.15"]
[White "Nilsson, Eskil"]
[Black "Holst, Conny"]
[Result "0-1"]
[ECO "B51"]
[WhiteElo "1991"]
[BlackElo "2197"]
[Annotator "ChessBase"]
[PlyCount "154"]
[EventDate "2019.05.30"]
[EventType "swiss"]
[EventCountry "SWE"]
[SourceTitle "playchess.com"]
[Source "ChessBase"]
[SourceQuality "1"]
[TimeControl "40/5400+30:1800+30"]

1. e4 {[%emt 0:00:00]} c5 {[%emt 0:00:01]} 2. Nf3 {[%emt 0:00:00]} d6 {[%emt 0:00:21]} 3. Bb5+ {[%emt 0:00:00]} Nc6 {[%emt 0:02:33]} 4. O-O {[%emt 0:00:54]} e5 {[%emt 0:02:45]} 5. c3 {[%emt 0:02:39]} f5 {[%emt 0:05:18]} 6. exf5 {[%emt 0:04:12]} Bxf5 {[%emt 0:04:41]} 7. d4 {[%emt 0:02:11]} e4 {[%emt 0:05:42]} 8. Re1 {[%emt 0:00:22]} Be7 {[%emt 0:02:41]} 9. d5 {[%emt 0:25:27]} a6 {[%emt 0:07:39]} 10. dxc6 {[%emt 0:00:12]} axb5 {[%emt 0:00:13]} 11. cxb7 {[%emt 0:00:43]} Rb8 {[%emt 0:05:48]} 12. Qd5 {[%emt 0:01:01]} Bg6 {[%emt 0:10:28]} 13. Ng5 {[%emt 0:11:31]} Nf6 {[%emt 0:01:41]} 14. Qb3 {[%emt 0:03:31]} Qd7 {[%emt 0:07:00]} 15. a4 {[%emt 0:01:18]} h6 {[%emt 0:04:44]} 16. Nh3 {[%emt 0:05:28]} bxa4 {[%emt 0:00:35]} 17. Qxa4 {[%emt 0:01:11]} Qxa4 {[%emt 0:01:38]} 18. Rxa4 {[%emt 0:00:07]} Rxb7 {[%emt 0:01:49]} 19. Ra8+ {[%emt 0:00:36]} Bd8 {[%emt 0:00:10]} 20. Bf4 {[%emt 0:11:12]} Rd7 {[%emt 0:02:28]} 21. Nd2 {[%emt 0:04:04]} O-O {[%emt 0:02:41]} 22. Nc4 {[%emt 0:00:36]} Be7 {[%emt 0:04:25]} 23. Ra6 {[%emt 0:01:33]} Rfd8 {[%emt 0:06:00]} 24. Rd1 {[%emt 0:14:06]} Bf5 {[%emt 0:01:36]} 25. f3 {[%emt 0:04:28]} exf3 {[%emt 0:01:09]} 26. Ne3 {[%emt 0:00:54]} Bxh3 {[%emt 0:03:18]} 27. gxh3 {[%emt 0:00:05]} Nh5 {[%emt 0:02:56]} 28. Bg3 {[%emt 0:00:37]} Nxg3 {[%emt 0:00:07]} 29. hxg3 {[%emt 0:00:08]} d5 {[%emt 0:00:49]} 30. Nf5 {[%emt 0:02:02]} Bf8 {[%emt 0:02:26]} 31. Rd3 {[%emt 0:01:00]} Rb8 {[%emt 0:02:19]} 32. b4 {[%emt 0:00:33]} cxb4 {[%emt 0:00:51]} 33. cxb4 {[%emt 0:00:06]} Bxb4 {[%emt 0:01:25]} 34. Rxf3 {[%emt 0:00:41]} Bc5+ {[%emt 0:02:30]} 35. Kf1 {[%emt 0:00:06]} Rdb7 {[%emt 0:01:24]} 36. Ra2 {[%emt 0:00:35]} Rb1+ {[%emt 0:00:41]} 37. Ke2 {[%emt 0:00:08]} Rh1 {[%emt 0:01:03]} 38. Rd2 {[%emt 0:00:48]} Rh2+ {[%emt 0:02:11]} 39. Kd1 {[%emt 0:00:11]} Rxh3 {[%emt 0:00:46]} 40. Kc2 {[%emt 0:02:28]} Rd8 {[%emt 0:01:31]} 41. Kd3 {[%emt 0:07:42]} Ra8 {[%emt 0:02:52]} 42. Rc2 {[%emt 0:03:49]} Ra3+ {[%emt 0:00:46]} 43. Rc3 {[%emt 0:00:08]} Rxc3+ {[%emt 0:00:11]} 44. Kxc3 {[%emt 0:00:06]} g6 {[%emt 0:02:28]} 45. Nh4 {[%emt 0:02:08]} Kg7 {[%emt 0:01:07]} 46. Kd3 {[%emt 0:01:59]} Be7 {[%emt 0:03:20]} 47. Ng2 {[%emt 0:00:25]} Bd6 {[%emt 0:00:22]} 48. Kd4 {[%emt 0:00:48]} Rxg3 {[%emt 0:00:11]} 49. Rxg3 {[%emt 0:00:15]} Bxg3 {[%emt 0:00:11]} 50. Kxd5 {[%emt 0:00:05]} Kf6 {[%emt 0:01:05]} 51. Ke4 {[%emt 0:00:07]} Kg5 {[%emt 0:00:54]} 52. Kf3 {[%emt 0:00:20]} Bb8 {[%emt 0:00:16]} 53. Ne3 {[%emt 0:00:22]} Kh4 {[%emt 0:01:04]} 54. Kg2 {[%emt 0:00:05]} Ba7 {[%emt 0:01:01]} 55. Nd5 {[%emt 0:00:07]} g5 {[%emt 0:00:54]} 56. Nf6 {[%emt 0:01:00]} h5 {[%emt 0:02:18]} 57. Nd7 {[%emt 0:00:42]} Bd4 {[%emt 0:00:19]} 58. Nf8 {[%emt 0:00:20]} g4 {[%emt 0:00:59]} 59. Ne6 {[%emt 0:00:20]} Be5 {[%emt 0:00:30]} 60. Nc5 {[%emt 0:00:31]} Kg5 {[%emt 0:00:38]} 61. Nd3 {[%emt 0:00:35]} Kf5 {[%emt 0:00:52]} 62. Nf2 {[%emt 0:01:15]} Bd4 {[%emt 0:00:28]} 63. Nd3 {[%emt 0:00:58]} Ke4 {[%emt 0:01:23]} 64. Nc1 {[%emt 0:00:22]} Be3 {[%emt 0:00:52]} 65. Ne2 {[%emt 0:00:24]} h4 {[%emt 0:02:27]} 66. Nc3+ {[%emt 0:00:06]} Kf5 {[%emt 0:00:29]} 67. Nd5 {[%emt 0:00:14]} Bc5 {[%emt 0:00:25]} 68. Nc3 {[%emt 0:00:43]} h3+ {[%emt 0:01:24]} 69. Kh2 {[%emt 0:00:16]} Bd6+ {[%emt 0:00:06]} 70. Kg1 {[%emt 0:00:17]} g3 {[%emt 0:00:32]} 71. Ne2 {[%emt 0:00:38]} Bc5+ {[%emt 0:00:44]} 72. Kh1 {[%emt 0:00:21]} g2+ {[%emt 0:00:06]} 73. Kh2 {[%emt 0:00:07]} Kg4 {[%emt 0:00:16]} 74. Nd4 {[%emt 0:00:35]} Bd6+ {[%emt 0:00:57]} 75. Kg1 {[%emt 0:00:06]} Kf4 {[%emt 0:01:45]} 76. Ne2+ {[%emt 0:01:23]} Ke4 {[%emt 0:00:35]} 77. Ng3+ {[%emt 0:02:09]} Kd3 {[%emt 0:00:56]} 0-1

[Event "16th Deltalift Open 2019"]
[Site "Halmstad"]
[Date "2019.05.31"]
[Round "6.16"]
[White "Falkevall, Axel"]
[Black "Blomstrom, Lars"]
[Result "1/2-1/2"]
[ECO "C95"]
[WhiteElo "1960"]
[BlackElo "2153"]
[Annotator "ChessBase"]
[PlyCount "76"]
[EventDate "2019.05.30"]
[EventType "swiss"]
[EventCountry "SWE"]
[SourceTitle "playchess.com"]
[Source "ChessBase"]
[SourceQuality "1"]
[TimeControl "40/5400+30:1800+30"]

1. e4 {[%emt 0:00:00]} e5 {[%emt 0:00:00]} 2. Nf3 {[%emt 0:00:00]} Nc6 {[%emt 0:00:00]} 3. Bb5 {[%emt 0:00:00]} a6 {[%emt 0:00:04]} 4. Ba4 {[%emt 0:00:00]} Nf6 {[%emt 0:00:06]} 5. O-O {[%emt 0:00:21]} Be7 {[%emt 0:00:29]} 6. Re1 {[%emt 0:00:13]} b5 {[%emt 0:00:15]} 7. Bb3 {[%emt 0:00:15]} d6 {[%emt 0:00:26]} 8. c3 {[%emt 0:00:14]} O-O {[%emt 0:00:06]} 9. h3 {[%emt 0:00:11]} Nb8 {[%emt 0:00:07]} 10. d4 {[%emt 0:00:17]} Nbd7 {[%emt 0:00:03]} 11. Nbd2 {[%emt 0:00:22]} Bb7 {[%emt 0:00:06]} 12. Bc2 {[%emt 0:00:08]} Re8 {[%emt 0:00:13]} 13. Nf1 {[%emt 0:01:34]} Bf8 {[%emt 0:00:03]} 14. Ng3 {[%emt 0:00:19]} g6 {[%emt 0:00:05]} 15. a4 {[%emt 0:02:59]} c5 {[%emt 0:00:49]} 16. Bd3 {[%emt 0:13:25]} c4 {[%emt 0:08:29]} 17. Bc2 {[%emt 0:02:10]} Qc7 {[%emt 0:03:28]} 18. Bd2 {[%emt 0:04:38]} Bg7 {[%emt 0:07:54]} 19. Qc1 {[%emt 0:01:39]} Nf8 {[%emt 0:13:17]} 20. d5 {[%emt 0:07:27]} Kh8 {[%emt 0:03:37]} 21. Bh6 {[%emt 0:07:06]} Bxh6 {[%emt 0:04:33]} 22. Qxh6 {[%emt 0:00:06]} Ng8 {[%emt 0:00:10]} 23. Qd2 {[%emt 0:01:39]} Reb8 {[%emt 0:05:53]} 24. Nh2 {[%emt 0:06:22]} f6 {[%emt 0:07:01]} 25. f4 {[%emt 0:05:25]} Qe7 {[%emt 0:09:15]} 26. Rf1 {[%emt 0:09:02]} Nd7 {[%emt 0:00:42]} 27. Nf3 {[%emt 0:05:06]} Bc8 {[%emt 0:02:30]} 28. a5 {[%emt 0:04:26]} exf4 {[%emt 0:03:40]} 29. Qxf4 {[%emt 0:00:09]} Ne5 {[%emt 0:00:13]} 30. Ne2 {[%emt 0:05:47]} Bd7 {[%emt 0:01:00]} 31. Ned4 {[%emt 0:01:04]} Re8 {[%emt 0:03:07]} 32. Qd2 {[%emt 0:05:43]} Rac8 {[%emt 0:00:57]} 33. Rf2 {[%emt 0:01:49]} Kg7 {[%emt 0:04:59]} 34. Ne2 {[%emt 0:01:51]} Nxf3+ {[%emt 0:02:43]} 35. Rxf3 {[%emt 0:00:20]} Qe5 {[%emt 0:01:21]} 36. Nd4 {[%emt 0:01:04]} Rf8 {[%emt 0:04:11]} 37. Raf1 {[%emt 0:04:10]} Rce8 {[%emt 0:04:53]} 38. R3f2 {[%emt 0:02:44]} Rc8 {[%emt 0:00:30]} 1/2-1/2

[Event "16th Deltalift Open 2019"]
[Site "Halmstad"]
[Date "2019.05.31"]
[Round "6.17"]
[White "Carlsson, Ludvig"]
[Black "Cramling Bellon, Anna"]
[Result "1-0"]
[ECO "E32"]
[WhiteElo "2208"]
[BlackElo "1990"]
[Annotator "ChessBase"]
[PlyCount "53"]
[EventDate "2019.05.30"]
[EventType "swiss"]
[EventCountry "SWE"]
[SourceTitle "playchess.com"]
[Source "ChessBase"]
[SourceQuality "1"]
[TimeControl "40/5400+30:1800+30"]

1. d4 {[%emt 0:00:51]} Nf6 {[%emt 0:00:00]} 2. c4 {[%emt 0:01:50]} e6 {[%emt 0:02:53]} 3. Nc3 {[%emt 0:00:30]} Bb4 {[%emt 0:00:06]} 4. Qc2 {[%emt 0:00:17]} b6 {[%emt 0:00:02]} 5. Nf3 {[%emt 0:02:35]} Bb7 {[%emt 0:00:14]} 6. a3 {[%emt 0:00:52]} Bxc3+ {[%emt 0:00:26]} 7. Qxc3 {[%emt 0:00:12]} Ne4 {[%emt 0:00:59]} 8. Qc2 {[%emt 0:00:28]} O-O {[%emt 0:00:18]} 9. e3 {[%emt 0:03:07]} f5 {[%emt 0:03:51]} 10. Bd3 {[%emt 0:03:11]} Ng5 {[%emt 0:05:35]} 11. Nxg5 {[%emt 0:00:42]} Qxg5 {[%emt 0:00:08]} 12. f3 {[%emt 0:00:10]} Nc6 {[%emt 0:02:13]} 13. O-O {[%emt 0:02:38]} Qh5 {[%emt 0:03:43]} 14. b4 {[%emt 0:05:23]} a6 {[%emt 0:07:55]} 15. Bb2 {[%emt 0:07:28]} Ne7 {[%emt 0:08:04]} 16. Rad1 {[%emt 0:02:41]} f4 {[%emt 0:13:43]} 17. Rfe1 {[%emt 0:03:08]} Rf6 {[%emt 0:03:52]} 18. exf4 {[%emt 0:01:50]} Rh6 {[%emt 0:03:43]} 19. h3 {[%emt 0:00:40]} Ng6 {[%emt 0:02:28]} 20. f5 {[%emt 0:07:36]} Nh4 {[%emt 0:11:32]} 21. fxe6 {[%emt 0:04:19]} dxe6 {[%emt 0:03:16]} 22. d5 {[%emt 0:01:26]} Qg5 {[%emt 0:06:33]} 23. Be4 {[%emt 0:01:26]} Qg3 {[%emt 0:07:26]} 24. Be5 {[%emt 0:06:21]} Qg5 {[%emt 0:01:16]} 25. Bxc7 {[%emt 0:00:33]} exd5 {[%emt 0:00:45]} 26. Rxd5 {[%emt 0:00:50]} Qf6 {[%emt 0:02:14]} 27. Rd6 {[%emt 0:00:46]} 1-0

[Event "16th Deltalift Open 2019"]
[Site "Halmstad"]
[Date "2019.05.31"]
[Round "6.18"]
[White "Wahlstrom, Lennart"]
[Black "Berglind, Axel"]
[Result "1-0"]
[ECO "B92"]
[WhiteElo "2196"]
[BlackElo "2072"]
[Annotator "ChessBase"]
[PlyCount "95"]
[EventDate "2019.05.30"]
[EventType "swiss"]
[EventCountry "SWE"]
[SourceTitle "playchess.com"]
[Source "ChessBase"]
[SourceQuality "1"]
[TimeControl "40/5400+30:1800+30"]

1. e4 {[%emt 0:00:00]} c5 {[%emt 0:00:00]} 2. Nf3 {[%emt 0:00:04]} d6 {[%emt 0:00:00]} 3. d4 {[%emt 0:00:07]} cxd4 {[%emt 0:00:00]} 4. Nxd4 {[%emt 0:00:07]} Nf6 {[%emt 0:00:00]} 5. Nc3 {[%emt 0:00:13]} a6 {[%emt 0:00:03]} 6. Be2 {[%emt 0:00:23]} e5 {[%emt 0:00:19]} 7. Nb3 {[%emt 0:00:14]} Be7 {[%emt 0:00:05]} 8. O-O {[%emt 0:00:22]} Be6 {[%emt 0:01:44]} 9. Be3 {[%emt 0:01:05]} Nbd7 {[%emt 0:01:10]} 10. f4 {[%emt 0:01:54]} exf4 {[%emt 0:04:56]} 11. Rxf4 {[%emt 0:00:16]} Ne5 {[%emt 0:00:34]} 12. Nd5 {[%emt 0:03:27]} Rc8 {[%emt 0:07:42]} 13. Bb6 {[%emt 0:13:24]} Qd7 {[%emt 0:00:04]} 14. Rc1 {[%emt 0:16:33]} Ng6 {[%emt 0:04:55]} 15. Nxe7 {[%emt 0:08:56]} Qxe7 {[%emt 0:01:13]} 16. Rf1 {[%emt 0:00:42]} Nxe4 {[%emt 0:01:31]} 17. Qd4 f5 {[%emt 0:22:12]} 18. c4 {[%emt 0:09:05]} O-O {[%emt 0:06:09]} 19. Bf3 {[%emt 0:06:16]} Ng5 {[%emt 0:18:56]} 20. Bh5 {[%emt 0:03:38]} Ne5 {[%emt 0:14:59]} 21. c5 {[%emt 0:12:30]} Ne4 {[%emt 0:00:10]} 22. cxd6 {[%emt 0:15:01]} Qxd6 {[%emt 0:00:06]} 23. Qxd6 {[%emt 0:00:31]} Nxd6 {[%emt 0:00:05]} 24. Bc7 {[%emt 0:00:50]} Nec4 {[%emt 0:05:50]} 25. Nd4 {[%emt 0:02:59]} Bd7 {[%emt 0:00:34]} 26. Bxd6 {[%emt 0:00:25]} Nxd6 {[%emt 0:00:05]} 27. Bf3 {[%emt 0:00:44]} Rxc1 {[%emt 0:00:53]} 28. Bd5+ {[%emt 0:00:20]} Kh8 {[%emt 0:00:22]} 29. Rxc1 {[%emt 0:00:06]} Rc8 {[%emt 0:03:09]} 30. Re1 {[%emt 0:00:22]} Re8 {[%emt 0:00:20]} 31. Rc1 {[%emt 0:00:22]} Rc8 {[%emt 0:02:22]} 32. Re1 {[%emt 0:00:07]} Ne4 {[%emt 0:00:19]} 33. Bxb7 {[%emt 0:01:17]} Rb8 {[%emt 0:00:42]} 34. Bxe4 {[%emt 0:01:14]} fxe4 {[%emt 0:02:50]} 35. b3 {[%emt 0:01:48]} Re8 {[%emt 0:00:08]} 36. Kf2 {[%emt 0:00:27]} Bc8 {[%emt 0:01:52]} 37. Ke3 {[%emt 0:00:28]} g6 {[%emt 0:00:16]} 38. Rc1 {[%emt 0:00:26]} Bf5 {[%emt 0:01:01]} 39. Rc6 {[%emt 0:00:51]} Bc8 {[%emt 0:01:18]} 40. b4 {[%emt 0:00:43]} Kg7 {[%emt 0:00:09]} 41. a4 {[%emt 0:30:34]} Kf7 {[%emt 0:30:19]} 42. Rc7+ {[%emt 0:00:32]} Kf6 {[%emt 0:00:22]} 43. b5 {[%emt 0:01:06]} axb5 {[%emt 0:00:16]} 44. axb5 {[%emt 0:00:07]} Ke5 {[%emt 0:00:04]} 45. Rxh7 {[%emt 0:00:00]} Bf5 {[%emt 0:00:00]} 46. b6 {[%emt 0:00:00]} Ra8 {[%emt 0:00:00]} 47. Ra7 {[%emt 0:00:00]} Rc8 {[%emt 0:00:00]} 48. Ra5+ {[%emt 0:00:00] Kd5 Kxe4+} 1-0

[Event "16th Deltalift Open 2019"]
[Site "Halmstad"]
[Date "2019.05.31"]
[Round "6.20"]
[White "Brzezinski, Adam"]
[Black "Mattsson, Michael"]
[Result "1-0"]
[ECO "E04"]
[WhiteElo "2193"]
[BlackElo "2063"]
[Annotator "ChessBase"]
[PlyCount "83"]
[EventDate "2019.05.30"]
[EventType "swiss"]
[EventCountry "SWE"]
[SourceTitle "playchess.com"]
[Source "ChessBase"]
[SourceQuality "1"]
[TimeControl "40/5400+30:1800+30"]

1. d4 {[%emt 0:00:00]} Nf6 {[%emt 0:00:00]} 2. c4 {[%emt 0:00:00]} e6 {[%emt 0:00:00]} 3. g3 {[%emt 0:00:00]} d5 {[%emt 0:01:40]} 4. Nf3 {[%emt 0:00:00]} dxc4 {[%emt 0:00:24]} 5. Bg2 {[%emt 0:00:09]} Nc6 {[%emt 0:00:52]} 6. O-O {[%emt 0:00:30]} Rb8 {[%emt 0:00:11]} 7. e3 {[%emt 0:00:34]} b5 {[%emt 0:06:11]} 8. b3 {[%emt 0:00:53]} cxb3 {[%emt 0:04:54]} 9. axb3 {[%emt 0:00:08]} a6 {[%emt 0:02:56]} 10. Qe2 {[%emt 0:00:17]} Be7 {[%emt 0:04:37]} 11. Bd2 {[%emt 0:00:10]} O-O {[%emt 0:03:03]} 12. Rc1 {[%emt 0:00:16]} Qd6 {[%emt 0:08:35]} 13. Ne1 {[%emt 0:04:42]} Rb6 {[%emt 0:02:53]} 14. Nd3 {[%emt 0:04:47]} Rd8 {[%emt 0:03:55]} 15. Na3 {[%emt 0:14:13]} Nd5 {[%emt 0:04:29]} 16. Nc2 {[%emt 0:03:26]} Bf6 {[%emt 0:03:26]} 17. Nc5 {[%emt 0:07:33]} Qf8 {[%emt 0:00:54]} 18. f4 {[%emt 0:06:34]} g6 {[%emt 0:03:04]} 19. Ra2 {[%emt 0:05:22]} Qg7 {[%emt 0:03:27]} 20. h3 {[%emt 0:00:51]} Be7 {[%emt 0:06:10]} 21. Kh2 {[%emt 0:08:42]} Bxc5 {[%emt 0:06:34]} 22. dxc5 {[%emt 0:00:08]} Rb8 {[%emt 0:00:30]} 23. Qe1 {[%emt 0:01:20]} e5 {[%emt 0:05:26]} 24. e4 {[%emt 0:09:50]} Nde7 {[%emt 0:03:46]} 25. Bc3 {[%emt 0:02:51]} f6 {[%emt 0:02:03]} 26. Ne3 {[%emt 0:04:01]} Nd4 {[%emt 0:02:48]} 27. Rd1 {[%emt 0:01:42]} Bxh3 {[%emt 0:04:46]} 28. Bxd4 {[%emt 0:01:49]} Bxg2 {[%emt 0:02:48]} 29. Nxg2 {[%emt 0:02:00]} exd4 {[%emt 0:05:33]} 30. Rxa6 {[%emt 0:00:16]} b4 {[%emt 0:01:59]} 31. Qf2 {[%emt 0:02:48]} Qf7 {[%emt 0:02:24]} 32. Qb2 {[%emt 0:00:47]} c6 {[%emt 0:02:24]} 33. Ra7 {[%emt 0:01:08]} d3 {[%emt 0:01:07]} 34. Qb1 {[%emt 0:02:08]} d2 {[%emt 0:00:22]} 35. Ra2 {[%emt 0:05:32]} Rb5 {[%emt 0:00:40]} 36. Qc2 {[%emt 0:02:52]} Qe6 {[%emt 0:01:04]} 37. Ne3 {[%emt 0:00:07]} Rd4 {[%emt 0:00:37]} 38. Rxd2 {[%emt 0:02:29]} Rxe4 {[%emt 0:01:09]} 39. Rd6 {[%emt 0:01:55]} Rxe3 {[%emt 0:00:45]} 40. Rxe6 {[%emt 0:00:08]} Rxe6 {[%emt 0:00:05]} 41. Qc4 {[%emt 0:30:54]} Nd5 {[%emt 0:31:06]} 42. Ra6 {[%emt 0:04:07]} 1-0

[Event "16th Deltalift Open 2019"]
[Site "Halmstad"]
[Date "2019.05.31"]
[Round "6.21"]
[White "Ivarsson, Sebastian"]
[Black "Naslund, Mikael"]
[Result "1-0"]
[ECO "D85"]
[WhiteElo "2013"]
[BlackElo "2177"]
[Annotator "ChessBase"]
[PlyCount "87"]
[EventDate "2019.05.30"]
[EventType "swiss"]
[EventCountry "SWE"]
[SourceTitle "playchess.com"]
[Source "ChessBase"]
[SourceQuality "1"]
[TimeControl "40/5400+30:1800+30"]

1. d4 {[%emt 0:00:00]} Nf6 {[%emt 0:00:00]} 2. c4 {[%emt 0:00:00]} g6 {[%emt 0:00:00]} 3. Nc3 {[%emt 0:00:00]} d5 {[%emt 0:00:00]} 4. Nf3 {[%emt 0:00:24]} Bg7 {[%emt 0:00:06]} 5. cxd5 {[%emt 0:01:12]} Nxd5 {[%emt 0:00:09]} 6. e4 {[%emt 0:00:06]} Nxc3 {[%emt 0:00:08]} 7. bxc3 {[%emt 0:00:04]} c5 {[%emt 0:00:31]} 8. Rb1 {[%emt 0:04:37]} Nc6 {[%emt 0:02:48]} 9. d5 {[%emt 0:03:52]} Ne5 {[%emt 0:01:51]} 10. Nxe5 {[%emt 0:00:40]} Bxe5 {[%emt 0:00:03]} 11. Bb5+ {[%emt 0:00:14]} Bd7 {[%emt 0:03:57]} 12. O-O {[%emt 0:00:16]} Bxb5 {[%emt 0:03:12]} 13. Rxb5 {[%emt 0:00:41]} Qc7 {[%emt 0:00:18]} 14. Qb3 {[%emt 0:10:04]} c4 {[%emt 0:14:15]} 15. Qb2 {[%emt 0:04:28]} b6 {[%emt 0:03:38]} 16. f4 {[%emt 0:01:20]} Bg7 {[%emt 0:00:38]} 17. a4 {[%emt 0:09:12]} O-O {[%emt 0:03:34]} 18. Be3 {[%emt 0:03:35]} Rab8 {[%emt 0:05:37]} 19. Rb1 {[%emt 0:00:58]} e6 {[%emt 0:01:39]} 20. a5 {[%emt 0:04:39]} exd5 {[%emt 0:00:49]} 21. axb6 {[%emt 0:00:38]} axb6 {[%emt 0:02:12]} 22. Rxd5 {[%emt 0:03:12]} Rfe8 {[%emt 0:03:03]} 23. e5 {[%emt 0:03:25]} g5 {[%emt 0:00:26]} 24. g3 {[%emt 0:04:50]} gxf4 {[%emt 0:00:49]} 25. gxf4 {[%emt 0:00:12]} Qc6 {[%emt 0:00:44]} 26. Qg2 {[%emt 0:05:07]} Kh8 {[%emt 0:02:03]} 27. Rd6 {[%emt 0:01:01]} Qa4 {[%emt 0:05:07]} 28. Qd5 {[%emt 0:02:24]} Qc2 {[%emt 0:09:39]} 29. Rc1 {[%emt 0:00:09]} Qe2 {[%emt 0:00:22]} 30. Qd2 {[%emt 0:02:37]} Qg4+ {[%emt 0:03:11]} 31. Qg2 {[%emt 0:00:53]} Qf5 {[%emt 0:00:24]} 32. Qf3 {[%emt 0:04:48]} b5 {[%emt 0:14:09]} 33. Kf2 {[%emt 0:03:56]} b4 {[%emt 0:03:47]} 34. cxb4 {[%emt 0:00:30]} Rxb4 {[%emt 0:00:21]} 35. Qc6 {[%emt 0:02:02]} Rc8 {[%emt 0:03:26]} 36. Qd7 {[%emt 0:01:52]} Rb2+ {[%emt 0:00:29]} 37. Kg3 {[%emt 0:00:38]} Qxd7 {[%emt 0:04:43]} 38. Rxd7 {[%emt 0:00:05]} Rb3 {[%emt 0:00:47]} 39. Kf3 {[%emt 0:01:24]} Kg8 {[%emt 0:00:28]} 40. e6 {[%emt 0:06:24]} Rxe3+ {[%emt 0:07:15]} 41. Kxe3 {[%emt 0:30:21]} Re8 {[%emt 0:30:13]} 42. Kf3 {[%emt 0:04:06]} Rxe6 {[%emt 0:01:11]} 43. Rd8+ {[%emt 0:00:12]} Bf8 {[%emt 0:00:08]} 44. f5 {[%emt 0:00:27]} 1-0

[Event "16th Deltalift Open 2019"]
[Site "Halmstad"]
[Date "2019.05.31"]
[Round "6.22"]
[White "Lindhe, Magnus"]
[Black "Trost, Edvin"]
[Result "1/2-1/2"]
[ECO "A45"]
[WhiteElo "2173"]
[BlackElo "2047"]
[Annotator "ChessBase"]
[PlyCount "110"]
[EventDate "2019.05.30"]
[EventType "swiss"]
[EventCountry "SWE"]
[SourceTitle "playchess.com"]
[Source "ChessBase"]
[SourceQuality "1"]
[TimeControl "40/5400+30:1800+30"]

1. d4 {[%emt 0:00:57]} Nf6 {[%emt 0:00:00]} 2. c3 {[%emt 0:00:07]} d5 {[%emt 0:00:27]} 3. Bg5 {[%emt 0:00:09]} Nbd7 {[%emt 0:01:12]} 4. Nd2 {[%emt 0:00:10]} e6 {[%emt 0:02:02]} 5. e3 {[%emt 0:00:20]} c5 {[%emt 0:02:39]} 6. Ngf3 {[%emt 0:00:50]} Bd6 {[%emt 0:01:26]} 7. Bd3 {[%emt 0:01:36]} Qc7 {[%emt 0:07:21]} 8. O-O {[%emt 0:01:57]} b6 {[%emt 0:06:14]} 9. Rc1 {[%emt 0:04:29]} Bb7 {[%emt 0:01:09]} 10. b4 {[%emt 0:01:24]} c4 {[%emt 0:01:19]} 11. Bb1 {[%emt 0:01:16]} Ne4 {[%emt 0:01:23]} 12. Bh4 {[%emt 0:00:46]} f5 {[%emt 0:03:36]} 13. Bg3 {[%emt 0:00:44]} Nxg3 {[%emt 0:02:23]} 14. hxg3 {[%emt 0:00:08]} h5 {[%emt 0:02:20]} 15. Ng5 {[%emt 0:01:20]} Rh6 {[%emt 0:00:48]} 16. f4 {[%emt 0:19:45]} Nf8 {[%emt 0:11:32]} 17. Ndf3 {[%emt 0:00:24]} Be7 {[%emt 0:01:48]} 18. Kf2 {[%emt 0:01:39]} Bf6 {[%emt 0:01:19]} 19. Rh1 {[%emt 0:00:32]} O-O-O {[%emt 0:00:54]} 20. Ne5 {[%emt 0:01:23]} Bxe5 {[%emt 0:01:27]} 21. dxe5 {[%emt 0:00:32]} g6 {[%emt 0:00:52]} 22. Nf3 {[%emt 0:00:31]} Qe7 {[%emt 0:01:25]} 23. Nd4 {[%emt 0:00:19]} a6 {[%emt 0:01:07]} 24. Bc2 {[%emt 0:05:23]} Kc7 {[%emt 0:00:35]} 25. Ra1 {[%emt 0:04:36]} Nh7 {[%emt 0:01:20]} 26. a4 {[%emt 0:05:16]} Ba8 {[%emt 0:05:54]} 27. Qe2 {[%emt 0:02:32]} Rh8 {[%emt 0:00:33]} 28. Bd1 {[%emt 0:04:04]} Nf8 {[%emt 0:02:27]} 29. Nf3 {[%emt 0:02:35]} Nh7 {[%emt 0:01:15]} 30. Qd2 {[%emt 0:00:25]} Kb8 {[%emt 0:00:39]} 31. Qd4 {[%emt 0:02:25]} Qc7 {[%emt 0:00:36]} 32. Be2 {[%emt 0:01:12]} Bb7 {[%emt 0:00:57]} 33. Qd2 {[%emt 0:02:59]} Bc8 {[%emt 0:01:04]} 34. Nd4 {[%emt 0:00:51]} Bd7 {[%emt 0:02:10]} 35. g4 {[%emt 0:05:19]} Nf8 {[%emt 0:01:34]} 36. gxh5 {[%emt 0:01:16]} gxh5 {[%emt 0:00:01]} 37. Bf3 {[%emt 0:00:29]} h4 {[%emt 0:02:11]} 38. Rh3 {[%emt 0:09:41]} Bc8 {[%emt 0:10:29]} 39. Rah1 {[%emt 0:07:02]} Bb7 {[%emt 0:01:16]} 40. Qa2 {[%emt 0:01:23]} Qe7 {[%emt 0:03:28]} 41. a5 {[%emt 0:35:58]} b5 {[%emt 0:30:17]} 42. Kf1 {[%emt 0:00:13]} R6h7 {[%emt 0:00:15]} 43. Qf2 {[%emt 0:00:08]} Ng6 {[%emt 0:12:18]} 44. Ke2 {[%emt 0:02:27]} Kc7 {[%emt 0:03:27]} 45. g4 {[%emt 0:01:57]} fxg4 {[%emt 0:02:29]} 46. Bxg4 {[%emt 0:00:07]} Bc8 {[%emt 0:00:19]} 47. Qh2 {[%emt 0:01:34]} Rg8 {[%emt 0:01:20]} 48. f5 {[%emt 0:00:00]} exf5 {[%emt 0:00:00]} 49. e6+ {[%emt 0:00:00]} Qd6 {[%emt 0:00:00]} 50. Bxf5 {[%emt 0:00:00]} Rhg7 {[%emt 0:00:00]} 51. Qxd6+ {[%emt 0:00:00]} Kxd6 {[%emt 0:00:00]} 52. Bxg6 {[%emt 0:00:00]} Rxg6 {[%emt 0:00:00]} 53. Rxh4 {[%emt 0:00:00]} Bxe6 {[%emt 0:00:00]} 54. Nxe6 {[%emt 0:00:00]} Kxe6 55. Rh6 Ke5 1/2-1/2